[Event "Titled Tuesday Blitz May 4 2021"]
[White "Serikbay, Assel"]
[Black "Rodin, Mihail"]
[WhiteFideId "13706799"]
[BlackFideId "4113160"]
[WhiteElo "2044"]
[BlackElo "2368"]
[Result "0-1"]
[Round "11"]
[TimeControl "180+1"]
[Date "2021.05.04"]
[WhiteClock "0:00:01"]
[BlackClock "0:00:15"]

1. e4 {[%clk 0:02:51]}  e5 {[%clk 0:02:59]} 2. Nf3 {[%clk 0:02:48]}  Nc6 {[%clk 0:03:00]} 3. Bb5 {[%clk 0:02:47]}  a6 {[%clk 0:03:00]} 4. Ba4 {[%clk 0:02:46]}  Bc5 {[%clk 0:03:00]} 5. c3 {[%clk 0:02:42]}  Nge7 {[%clk 0:03:00]} 6. d4 {[%clk 0:02:40]}  exd4 {[%clk 0:03:01]} 7. cxd4 {[%clk 0:02:40]}  Bb4+ {[%clk 0:03:01]} 8. Nc3 {[%clk 0:02:38]}  d5 {[%clk 0:03:01]} 9. O-O {[%clk 0:02:34]}  O-O {[%clk 0:03:00]} 10. Bc2 {[%clk 0:02:22]}  Bg4 {[%clk 0:02:48]} 11. a3 {[%clk 0:02:14]}  Ba5 {[%clk 0:02:47]} 12. exd5 {[%clk 0:02:08]}  Nxd5 {[%clk 0:02:44]} 13. Qd3 {[%clk 0:02:03]}  g6 {[%clk 0:02:32]} 14. Bh6 {[%clk 0:02:02]}  Re8 {[%clk 0:02:24]} 15. Bb3 {[%clk 0:01:49]}  Bf5 {[%clk 0:02:04]} 16. Qd2 {[%clk 0:01:48]}  Be6 {[%clk 0:01:49]} 17. Ng5 {[%clk 0:01:31]}  Qd6 {[%clk 0:01:21]} 18. Nge4 {[%clk 0:01:04]}  Qd8 {[%clk 0:01:08]} 19. Bg5 {[%clk 0:00:59]}  f6 {[%clk 0:00:59]} 20. Bxd5 {[%clk 0:00:56]}  fxg5 {[%clk 0:00:59]} 21. Bxe6+ {[%clk 0:00:52]}  Rxe6 {[%clk 0:00:59]} 22. b4 {[%clk 0:00:50]}  Bb6 {[%clk 0:00:44]} 23. Nxg5 {[%clk 0:00:37]}  Nxd4 {[%clk 0:00:32]} 24. Rad1 {[%clk 0:00:32]}  Rd6 {[%clk 0:00:28]} 25. Qa2+ {[%clk 0:00:28]}  Kg7 {[%clk 0:00:26]} 26. Qf7+ {[%clk 0:00:26]}  Kh6 {[%clk 0:00:26]} 27. Qxh7+ {[%clk 0:00:22]}  Kxg5 {[%clk 0:00:26]} 28. Ne4+ {[%clk 0:00:23]}  Kf5 {[%clk 0:00:19]} 29. Qf7+ {[%clk 0:00:19]}  Rf6 {[%clk 0:00:17]} 30. Qxf6+ {[%clk 0:00:17]}  Qxf6 {[%clk 0:00:17]} 31. Nxf6 {[%clk 0:00:14]}  Kxf6 {[%clk 0:00:17]} 32. Rfe1 {[%clk 0:00:10]}  a5 {[%clk 0:00:16]} 33. b5 {[%clk 0:00:08]}  a4 {[%clk 0:00:16]} 34. Kf1 {[%clk 0:00:06]}  Ra5 {[%clk 0:00:16]} 35. Re4 {[%clk 0:00:05]}  Nf5 {[%clk 0:00:15]} 36. Rb1 {[%clk 0:00:04]}  Nd6 {[%clk 0:00:15]} 37. Reb4 {[%clk 0:00:03]}  Bc5 {[%clk 0:00:15]} 38. Rf4+ {[%clk 0:00:03]}  Ke5 {[%clk 0:00:15]} 39. g3 {[%clk 0:00:01]}  Rxb5 {[%clk 0:00:15]} 0-1


[Site "https://www.chess.com"]

[Event "Titled Tuesday Blitz May 4 2021"]
[White "Shahinyan, David"]
[Black "Dobrov, Vladimir"]
[WhiteFideId "13304380"]
[BlackFideId "4136594"]
[WhiteElo "2372"]
[BlackElo "2614"]
[Result "0-1"]
[Round "11"]
[TimeControl "180+1"]
[Date "2021.05.04"]
[WhiteClock "0:00:01"]
[BlackClock "0:00:10"]

1. e4 {[%clk 0:03:00]}  e5 {[%clk 0:02:59]} 2. Nf3 {[%clk 0:03:00]}  Nf6 {[%clk 0:03:00]} 3. Nc3 {[%clk 0:02:58]}  Nc6 {[%clk 0:02:56]} 4. d4 {[%clk 0:02:58]}  exd4 {[%clk 0:02:56]} 5. Nxd4 {[%clk 0:02:59]}  Bb4 {[%clk 0:02:55]} 6. Nxc6 {[%clk 0:02:59]}  bxc6 {[%clk 0:02:56]} 7. Bd3 {[%clk 0:03:00]}  d5 {[%clk 0:02:56]} 8. Bd2 {[%clk 0:02:59]}  O-O {[%clk 0:02:53]} 9. O-O {[%clk 0:02:58]}  Rb8 {[%clk 0:02:49]} 10. Re1 {[%clk 0:02:57]}  Bg4 {[%clk 0:02:45]} 11. f3 {[%clk 0:02:48]}  Be6 {[%clk 0:02:44]} 12. a3 {[%clk 0:02:45]}  Bc5+ {[%clk 0:02:40]} 13. Kh1 {[%clk 0:02:45]}  Nh5 {[%clk 0:02:39]} 14. Rf1 {[%clk 0:02:02]}  Qf6 {[%clk 0:02:03]} 15. Na4 {[%clk 0:01:55]}  Bd4 {[%clk 0:01:44]} 16. c3 {[%clk 0:01:52]}  Be5 {[%clk 0:01:44]} 17. f4 {[%clk 0:01:42]}  Nxf4 {[%clk 0:01:41]} 18. Bxf4 {[%clk 0:01:40]}  Bxf4 {[%clk 0:01:41]} 19. g3 {[%clk 0:01:40]}  dxe4 {[%clk 0:01:25]} 20. Rxf4 {[%clk 0:01:41]}  Qe5 {[%clk 0:01:03]} 21. Bxe4 {[%clk 0:01:32]}  g5 {[%clk 0:01:03]} 22. Qh5 {[%clk 0:01:26]}  Rfd8 {[%clk 0:00:45]} 23. Raf1 {[%clk 0:01:09]}  Qg7 {[%clk 0:00:22]} 24. Rf6 {[%clk 0:01:08]}  Rd2 {[%clk 0:00:21]} 25. Rh6 {[%clk 0:00:55]}  Bg4 {[%clk 0:00:09]} 26. Bxh7+ {[%clk 0:00:41]}  Kf8 {[%clk 0:00:10]} 27. Qg6 {[%clk 0:00:05]}  Re8 {[%clk 0:00:04]} 28. h3 {[%clk 0:00:02]}  Bf3+ {[%clk 0:00:04]} 29. Kg1 {[%clk 0:00:01]}  Rg2+ {[%clk 0:00:04]} 30. Kh1 {[%clk 0:00:02]}  Rf2+ {[%clk 0:00:04]} 31. Kg1 {[%clk 0:00:02]}  Rg2+ {[%clk 0:00:05]} 32. Kh1 {[%clk 0:00:02]}  Rxb2+ {[%clk 0:00:02]} 33. Kg1 {[%clk 0:00:02]}  Rg2+ {[%clk 0:00:03]} 34. Kh1 {[%clk 0:00:02]}  Rd2+ {[%clk 0:00:04]} 35. Kg1 {[%clk 0:00:03]}  Ree2 {[%clk 0:00:04]} 36. Qxg7+ {[%clk 0:00:01]}  Kxg7 {[%clk 0:00:04]} 37. Rxf3 {[%clk 0:00:02]}  Re1+ {[%clk 0:00:04]} 38. Rf1 {[%clk 0:00:01]}  Rxf1+ {[%clk 0:00:05]} 39. Kxf1 {[%clk 0:00:02]}  Kxh6 {[%clk 0:00:06]} 40. Be4 {[%clk 0:00:02]}  c5 {[%clk 0:00:06]} 41. Nxc5 {[%clk 0:00:01]}  Ra2 {[%clk 0:00:07]} 42. a4 {[%clk 0:00:01]}  Ra3 {[%clk 0:00:07]} 43. Kf2 {[%clk 0:00:01]}  Rxc3 {[%clk 0:00:07]} 44. Nd3 {[%clk 0:00:02]}  Rc4 {[%clk 0:00:07]} 45. Ke3 {[%clk 0:00:01]}  Rxa4 {[%clk 0:00:08]} 46. Bd5 {[%clk 0:00:02]}  f6 {[%clk 0:00:08]} 47. g4 {[%clk 0:00:03]}  Kg6 {[%clk 0:00:08]} 48. Nc5 {[%clk 0:00:03]}  Ra3+ {[%clk 0:00:09]} 49. Kd4 {[%clk 0:00:04]}  Rxh3 {[%clk 0:00:09]} 50. Be4+ {[%clk 0:00:05]}  Kg7 {[%clk 0:00:09]} 51. Ne6+ {[%clk 0:00:03]}  Kf7 {[%clk 0:00:10]} 52. Nxc7 {[%clk 0:00:04]}  Rg3 {[%clk 0:00:11]} 53. Bf5 {[%clk 0:00:04]}  Rf3 {[%clk 0:00:10]} 54. Nd5 {[%clk 0:00:04]}  a5 {[%clk 0:00:11]} 55. Kc4 {[%clk 0:00:04]}  a4 {[%clk 0:00:10]} 56. Kb4 {[%clk 0:00:04]}  a3 {[%clk 0:00:11]} 57. Bb1 {[%clk 0:00:03]}  Rg3 {[%clk 0:00:10]} 58. Nc3 {[%clk 0:00:01]}  Rxg4+ {[%clk 0:00:09]} 59. Kxa3 {[%clk 0:00:02]}  Rd4 {[%clk 0:00:10]} 60. Kb2 {[%clk 0:00:03]}  Ke6 {[%clk 0:00:10]} 61. Kc2 {[%clk 0:00:02]}  f5 {[%clk 0:00:10]} 62. Ba2+ {[%clk 0:00:02]}  Ke5 {[%clk 0:00:10]} 63. Ne2 {[%clk 0:00:03]}  Rd8 {[%clk 0:00:10]} 64. Bc4 {[%clk 0:00:03]}  f4 {[%clk 0:00:11]} 65. Bd3 {[%clk 0:00:04]}  f3 {[%clk 0:00:11]} 66. Nc3 {[%clk 0:00:03]}  g4 {[%clk 0:00:11]} 67. Kd2 {[%clk 0:00:03]}  Kf4 {[%clk 0:00:10]} 68. Nd1 {[%clk 0:00:01]}  g3 {[%clk 0:00:10]} 0-1


[Site "https://www.chess.com"]

[Event "Titled Tuesday Blitz May 4 2021"]
[White "Shankovskyi, Andrii"]
[Black "de Leon, Patricia"]
[WhiteFideId "14121565"]
[BlackFideId "3000273"]
[WhiteElo "2269"]
[BlackElo "1989"]
[Result "1-0"]
[Round "11"]
[TimeControl "180+1"]
[Date "2021.05.04"]
[WhiteClock "0:00:13"]
[BlackClock "0:00:03"]

1. e4 {[%clk 0:03:00]}  e6 {[%clk 0:02:59]} 2. d4 {[%clk 0:02:58]}  d5 {[%clk 0:03:00]} 3. exd5 {[%clk 0:02:59]}  exd5 {[%clk 0:03:00]} 4. Bd3 {[%clk 0:02:57]}  Bd6 {[%clk 0:02:59]} 5. Nf3 {[%clk 0:02:57]}  Bg4 {[%clk 0:02:56]} 6. O-O {[%clk 0:02:55]}  Ne7 {[%clk 0:02:55]} 7. Nc3 {[%clk 0:02:52]}  Nbc6 {[%clk 0:02:53]} 8. Bg5 {[%clk 0:02:51]}  f6 {[%clk 0:02:53]} 9. Bh4 {[%clk 0:02:48]}  Qd7 {[%clk 0:02:52]} 10. h3 {[%clk 0:02:45]}  Bh5 {[%clk 0:02:52]} 11. Re1 {[%clk 0:02:43]}  O-O-O {[%clk 0:02:51]} 12. Nb5 {[%clk 0:02:38]}  Bf4 {[%clk 0:02:09]} 13. Bg3 {[%clk 0:02:26]}  Bxg3 {[%clk 0:02:03]} 14. fxg3 {[%clk 0:02:27]}  g5 {[%clk 0:01:45]} 15. g4 {[%clk 0:02:22]}  Bg6 {[%clk 0:01:45]} 16. g3 {[%clk 0:02:20]}  a6 {[%clk 0:01:33]} 17. Nc3 {[%clk 0:02:14]}  h5 {[%clk 0:01:25]} 18. Bxg6 {[%clk 0:01:59]}  Nxg6 {[%clk 0:01:24]} 19. gxh5 {[%clk 0:01:56]}  Rxh5 {[%clk 0:01:11]} 20. Ne5 {[%clk 0:01:53]}  Qxh3 {[%clk 0:01:07]} 21. Nxc6 {[%clk 0:01:39]}  Qxg3+ {[%clk 0:00:56]} 22. Kf1 {[%clk 0:01:34]}  Qf4+ {[%clk 0:00:41]} 23. Ke2 {[%clk 0:01:28]}  bxc6 {[%clk 0:00:27]} 24. Qd3 {[%clk 0:01:23]}  Qg4+ {[%clk 0:00:17]} 25. Kd2 {[%clk 0:01:20]}  Nf4 {[%clk 0:00:15]} 26. Qxa6+ {[%clk 0:01:18]}  Kd7 {[%clk 0:00:15]} 27. Qa3 {[%clk 0:00:59]}  Rh2+ {[%clk 0:00:14]} 28. Kc1 {[%clk 0:00:58]}  Ne6 {[%clk 0:00:11]} 29. b3 {[%clk 0:00:53]}  Qxd4 {[%clk 0:00:10]} 30. Kb2 {[%clk 0:00:52]}  Qd2 {[%clk 0:00:09]} 31. Rac1 {[%clk 0:00:50]}  Rb8 {[%clk 0:00:08]} 32. Na4 {[%clk 0:00:46]}  Qd4+ {[%clk 0:00:08]} 33. Nc3 {[%clk 0:00:42]}  Rbh8 {[%clk 0:00:08]} 34. Rcd1 {[%clk 0:00:39]}  Qc5 {[%clk 0:00:04]} 35. Qxc5 {[%clk 0:00:30]}  Nxc5 {[%clk 0:00:05]} 36. Ne4 {[%clk 0:00:24]}  Nxe4 {[%clk 0:00:04]} 37. Rxe4 {[%clk 0:00:25]}  Re8 {[%clk 0:00:05]} 38. Red4 {[%clk 0:00:20]}  Re5 {[%clk 0:00:03]} 39. R4d3 {[%clk 0:00:19]}  Kd6 {[%clk 0:00:04]} 40. Rf3 {[%clk 0:00:18]}  Re6 {[%clk 0:00:02]} 41. Rdf1 {[%clk 0:00:17]}  Rg2 {[%clk 0:00:03]} 42. Rxf6 {[%clk 0:00:16]}  Rxf6 {[%clk 0:00:03]} 43. Rxf6+ {[%clk 0:00:16]}  Kc5 {[%clk 0:00:04]} 44. Rg6 {[%clk 0:00:15]}  g4 {[%clk 0:00:04]} 45. Kc3 {[%clk 0:00:15]}  g3 {[%clk 0:00:04]} 46. b4+ {[%clk 0:00:15]}  Kb5 {[%clk 0:00:04]} 47. Kb3 {[%clk 0:00:15]}  c5 {[%clk 0:00:03]} 48. a4# {[%clk 0:00:13]} 1-0


[Site "https://www.chess.com"]

[Event "Titled Tuesday Blitz May 4 2021"]
[White "Shkapenko, Pavel"]
[Black "Kiselev, Gennady"]
[WhiteFideId "4151933"]
[BlackFideId "4117107"]
[WhiteElo "2386"]
[BlackElo "2323"]
[Result "1-0"]
[Round "11"]
[TimeControl "180+1"]
[Date "2021.05.04"]
[WhiteClock "0:00:39"]
[BlackClock "0:00:30"]

1. e4 {[%clk 0:03:00]}  c5 {[%clk 0:02:57]} 2. c3 {[%clk 0:03:01]}  d5 {[%clk 0:02:55]} 3. exd5 {[%clk 0:03:01]}  Qxd5 {[%clk 0:02:55]} 4. Nf3 {[%clk 0:03:01]}  Nf6 {[%clk 0:02:53]} 5. d4 {[%clk 0:03:02]}  cxd4 {[%clk 0:02:53]} 6. cxd4 {[%clk 0:03:02]}  e6 {[%clk 0:02:52]} 7. Nc3 {[%clk 0:03:02]}  Qd6 {[%clk 0:02:52]} 8. Nb5 {[%clk 0:02:59]}  Qd8 {[%clk 0:02:51]} 9. Bc4 {[%clk 0:02:59]}  a6 {[%clk 0:02:49]} 10. Nc3 {[%clk 0:02:58]}  Nc6 {[%clk 0:02:48]} 11. O-O {[%clk 0:02:58]}  Be7 {[%clk 0:02:47]} 12. Bg5 {[%clk 0:02:51]}  Nb4 {[%clk 0:02:44]} 13. Re1 {[%clk 0:02:44]}  O-O {[%clk 0:02:43]} 14. Ne5 {[%clk 0:02:43]}  Bd7 {[%clk 0:02:42]} 15. a3 {[%clk 0:02:40]}  Nbd5 {[%clk 0:02:40]} 16. Bxf6 {[%clk 0:02:29]}  Nxf6 {[%clk 0:02:34]} 17. Qf3 {[%clk 0:02:29]}  b5 {[%clk 0:02:27]} 18. Ba2 {[%clk 0:02:28]}  Rc8 {[%clk 0:02:24]} 19. Rad1 {[%clk 0:02:23]}  Be8 {[%clk 0:02:18]} 20. d5 {[%clk 0:02:08]}  exd5 {[%clk 0:02:17]} 21. Bxd5 {[%clk 0:02:08]}  Nxd5 {[%clk 0:02:15]} 22. Nxd5 {[%clk 0:02:08]}  Bd6 {[%clk 0:01:48]} 23. Ng4 {[%clk 0:01:29]}  Qg5 {[%clk 0:01:43]} 24. Ndf6+ {[%clk 0:01:23]}  gxf6 {[%clk 0:01:36]} 25. Nxf6+ {[%clk 0:01:23]}  Kh8 {[%clk 0:01:31]} 26. Rxd6 {[%clk 0:01:22]}  b4 {[%clk 0:00:55]} 27. Rd5 {[%clk 0:01:13]}  Rc1 {[%clk 0:00:50]} 28. Rxc1 {[%clk 0:00:40]}  Qxc1+ {[%clk 0:00:47]} 29. Rd1 {[%clk 0:00:40]}  Qxb2 {[%clk 0:00:46]} 30. Qf5 {[%clk 0:00:39]}  Kg7 {[%clk 0:00:37]} 31. Qg5+ {[%clk 0:00:39]}  Kh8 {[%clk 0:00:36]} 32. Qh6 {[%clk 0:00:39]}  Qc2 {[%clk 0:00:30]} 33. Qxf8# {[%clk 0:00:39]} 1-0


[Site "https://www.chess.com"]

[Event "Titled Tuesday Blitz May 4 2021"]
[White "Shyaamnikhil P"]
[Black "Papasimakopoulos, Alexandros"]
[WhiteFideId "5024218"]
[BlackFideId "4244125"]
[WhiteElo "2300"]
[BlackElo "2352"]
[Result "0-1"]
[Round "11"]
[TimeControl "180+1"]
[Date "2021.05.04"]
[WhiteClock "0:00:21"]
[BlackClock "0:00:25"]

1. e3 {[%clk 0:03:00]}  f5 {[%clk 0:02:57]} 2. g4 {[%clk 0:02:57]}  d5 {[%clk 0:02:56]} 3. gxf5 {[%clk 0:02:56]}  Bxf5 {[%clk 0:02:57]} 4. d4 {[%clk 0:02:55]}  Nf6 {[%clk 0:02:56]} 5. Bd3 {[%clk 0:02:55]}  e6 {[%clk 0:02:56]} 6. Ne2 {[%clk 0:02:53]}  Bd6 {[%clk 0:02:54]} 7. Ng3 {[%clk 0:02:51]}  Bxd3 {[%clk 0:02:54]} 8. cxd3 {[%clk 0:02:49]}  O-O {[%clk 0:02:55]} 9. Nc3 {[%clk 0:02:48]}  e5 {[%clk 0:02:51]} 10. dxe5 {[%clk 0:02:46]}  Bxe5 {[%clk 0:02:52]} 11. d4 {[%clk 0:02:46]}  Bxg3 {[%clk 0:02:50]} 12. hxg3 {[%clk 0:02:46]}  Nc6 {[%clk 0:02:40]} 13. a3 {[%clk 0:02:43]}  Qd7 {[%clk 0:02:34]} 14. b4 {[%clk 0:02:41]}  Qf5 {[%clk 0:02:26]} 15. Ra2 {[%clk 0:02:32]}  Rae8 {[%clk 0:02:23]} 16. b5 {[%clk 0:02:14]}  Na5 {[%clk 0:02:19]} 17. Re2 {[%clk 0:02:13]}  Qf3 {[%clk 0:02:17]} 18. Rf1 {[%clk 0:02:11]}  Ng4 {[%clk 0:02:04]} 19. Rb2 {[%clk 0:01:55]}  Qf5 {[%clk 0:01:19]} 20. Nxd5 {[%clk 0:01:52]}  Nh2 {[%clk 0:01:18]} 21. Nf4 {[%clk 0:01:48]}  Nxf1 {[%clk 0:01:16]} 22. Kxf1 {[%clk 0:01:48]}  g5 {[%clk 0:01:13]} 23. Ng2 {[%clk 0:01:43]}  Qh3 {[%clk 0:01:03]} 24. Kg1 {[%clk 0:01:43]}  Re6 {[%clk 0:00:59]} 25. e4 {[%clk 0:01:07]}  Rh6 {[%clk 0:00:57]} 26. Nh4 {[%clk 0:01:07]}  gxh4 {[%clk 0:00:44]} 27. Bxh6 {[%clk 0:01:06]}  hxg3 {[%clk 0:00:44]} 28. fxg3 {[%clk 0:00:42]}  Qxh6 {[%clk 0:00:43]} 29. Qd2 {[%clk 0:00:42]}  Qxd2 {[%clk 0:00:41]} 30. Rxd2 {[%clk 0:00:43]}  Nc4 {[%clk 0:00:33]} 31. Rc2 {[%clk 0:00:42]}  Nxa3 {[%clk 0:00:30]} 32. Rxc7 {[%clk 0:00:41]}  Rf7 {[%clk 0:00:28]} 33. Rc5 {[%clk 0:00:38]}  Rd7 {[%clk 0:00:23]} 34. d5 {[%clk 0:00:36]}  b6 {[%clk 0:00:20]} 35. Rc8+ {[%clk 0:00:30]}  Kg7 {[%clk 0:00:21]} 36. Kf2 {[%clk 0:00:30]}  Nxb5 {[%clk 0:00:21]} 37. Ke3 {[%clk 0:00:30]}  Nd6 {[%clk 0:00:19]} 38. Rc6 {[%clk 0:00:28]}  Nf7 {[%clk 0:00:15]} 39. Kf4 {[%clk 0:00:24]}  Re7 {[%clk 0:00:15]} 40. Rc8 {[%clk 0:00:15]}  Rxe4+ {[%clk 0:00:14]} 41. Kxe4 {[%clk 0:00:14]}  Nd6+ {[%clk 0:00:15]} 42. Ke5 {[%clk 0:00:14]}  Nxc8 {[%clk 0:00:16]} 43. Ke6 {[%clk 0:00:14]}  b5 {[%clk 0:00:16]} 44. Kd7 {[%clk 0:00:15]}  Nb6+ {[%clk 0:00:16]} 45. Kc6 {[%clk 0:00:15]}  Nxd5 {[%clk 0:00:17]} 46. Kxd5 {[%clk 0:00:16]}  a6 {[%clk 0:00:17]} 47. Kc5 {[%clk 0:00:17]}  Kg6 {[%clk 0:00:18]} 48. Kb4 {[%clk 0:00:17]}  Kg5 {[%clk 0:00:19]} 49. Ka5 {[%clk 0:00:18]}  Kg4 {[%clk 0:00:19]} 50. Kxa6 {[%clk 0:00:19]}  b4 {[%clk 0:00:20]} 51. Kb5 {[%clk 0:00:20]}  b3 {[%clk 0:00:21]} 52. Kc4 {[%clk 0:00:20]}  b2 {[%clk 0:00:22]} 53. Kd3 {[%clk 0:00:21]}  b1=Q+ {[%clk 0:00:22]} 54. Ke3 {[%clk 0:00:22]}  Qg1+ {[%clk 0:00:23]} 55. Ke4 {[%clk 0:00:21]}  Qxg3 {[%clk 0:00:24]} 56. Kd5 {[%clk 0:00:21]}  h5 {[%clk 0:00:25]} 0-1


[Site "https://www.chess.com"]

[Event "Titled Tuesday Blitz May 4 2021"]
[White "Sikorova, Olga"]
[Black "Bashirli, Saadat"]
[WhiteFideId "307033"]
[BlackFideId "13429990"]
[WhiteElo "2188"]
[BlackElo "1153"]
[Result "1-0"]
[Round "11"]
[TimeControl "180+1"]
[Date "2021.05.04"]
[WhiteClock "0:01:37"]
[BlackClock "0:01:25"]

1. c4 {[%clk 0:03:00]}  e6 {[%clk 0:02:57]} 2. g3 {[%clk 0:03:00]}  Nf6 {[%clk 0:02:51]} 3. Bg2 {[%clk 0:03:01]}  d5 {[%clk 0:02:45]} 4. Nf3 {[%clk 0:02:58]}  Bd6 {[%clk 0:02:42]} 5. O-O {[%clk 0:02:58]}  O-O {[%clk 0:02:41]} 6. b3 {[%clk 0:02:59]}  c6 {[%clk 0:02:40]} 7. Bb2 {[%clk 0:02:59]}  Re8 {[%clk 0:02:37]} 8. d3 {[%clk 0:02:58]}  e5 {[%clk 0:02:35]} 9. cxd5 {[%clk 0:02:57]}  cxd5 {[%clk 0:02:36]} 10. e3 {[%clk 0:02:41]}  Nc6 {[%clk 0:02:33]} 11. Nc3 {[%clk 0:02:40]}  Be6 {[%clk 0:02:27]} 12. Qd2 {[%clk 0:02:39]}  a6 {[%clk 0:02:24]} 13. d4 {[%clk 0:02:22]}  e4 {[%clk 0:02:19]} 14. Ng5 {[%clk 0:02:22]}  b5 {[%clk 0:02:00]} 15. Nxe6 {[%clk 0:02:21]}  Rxe6 {[%clk 0:01:57]} 16. Rfc1 {[%clk 0:01:54]}  Rc8 {[%clk 0:01:52]} 17. Bf1 {[%clk 0:01:49]}  Bb4 {[%clk 0:01:40]} 18. a3 {[%clk 0:01:48]}  Bxc3 {[%clk 0:01:37]} 19. Bxc3 {[%clk 0:01:47]}  Re8 {[%clk 0:01:29]} 20. Bb4 {[%clk 0:01:43]}  Qd7 {[%clk 0:01:25]} 21. Bc5 {[%clk 0:01:37]} 1-0


[Site "https://www.chess.com"]

[Event "Titled Tuesday Blitz May 4 2021"]
[White "Stepak, Yedael"]
[Black "Girish, A. Koushik"]
[WhiteFideId "2800454"]
[BlackFideId "5038448"]
[WhiteElo "2146"]
[BlackElo "2387"]
[Result "0-1"]
[Round "11"]
[TimeControl "180+1"]
[Date "2021.05.04"]
[WhiteClock "0:00:47"]
[BlackClock "0:01:17"]

1. d4 {[%clk 0:02:43]}  Nf6 {[%clk 0:02:16]} 2. c4 {[%clk 0:02:43]}  e6 {[%clk 0:02:16]} 3. Nf3 {[%clk 0:02:42]}  d5 {[%clk 0:02:16]} 4. e3 {[%clk 0:02:42]}  b6 {[%clk 0:02:14]} 5. Nc3 {[%clk 0:02:41]}  Bb7 {[%clk 0:02:14]} 6. cxd5 {[%clk 0:02:41]}  exd5 {[%clk 0:02:14]} 7. Bb5+ {[%clk 0:02:41]}  c6 {[%clk 0:02:14]} 8. Bd3 {[%clk 0:02:40]}  Nbd7 {[%clk 0:02:15]} 9. O-O {[%clk 0:02:40]}  Bd6 {[%clk 0:02:15]} 10. Qe2 {[%clk 0:02:39]}  O-O {[%clk 0:02:13]} 11. h3 {[%clk 0:02:36]}  Re8 {[%clk 0:02:13]} 12. Qc2 {[%clk 0:02:29]}  c5 {[%clk 0:02:09]} 13. b3 {[%clk 0:02:27]}  Rc8 {[%clk 0:02:08]} 14. Bb2 {[%clk 0:02:26]}  Ne4 {[%clk 0:02:03]} 15. Rad1 {[%clk 0:02:13]}  Ndf6 {[%clk 0:01:50]} 16. Bb5 {[%clk 0:02:07]}  Re7 {[%clk 0:01:49]} 17. Nxe4 {[%clk 0:02:01]}  dxe4 {[%clk 0:01:49]} 18. Ne5 {[%clk 0:01:47]}  cxd4 {[%clk 0:01:48]} 19. Nc6 {[%clk 0:01:44]}  Bxc6 {[%clk 0:01:46]} 20. Bxc6 {[%clk 0:01:43]}  d3 {[%clk 0:01:35]} 21. Qc4 {[%clk 0:01:34]}  Rec7 {[%clk 0:01:35]} 22. Rc1 {[%clk 0:01:24]}  Rxc6 {[%clk 0:01:32]} 23. Qxc6 {[%clk 0:01:23]}  Rxc6 {[%clk 0:01:32]} 24. Rxc6 {[%clk 0:01:24]}  Qd7 {[%clk 0:01:26]} 25. Rcc1 {[%clk 0:01:13]}  Nd5 {[%clk 0:01:22]} 26. a3 {[%clk 0:01:10]}  f5 {[%clk 0:01:21]} 27. g3 {[%clk 0:01:03]}  f4 {[%clk 0:01:18]} 28. gxf4 {[%clk 0:01:01]}  Qxh3 {[%clk 0:01:18]} 29. Rc6 {[%clk 0:00:56]}  Bxf4 {[%clk 0:01:18]} 30. exf4 {[%clk 0:00:48]}  Nxf4 {[%clk 0:01:19]} 31. Rc8+ {[%clk 0:00:47]}  Qxc8 {[%clk 0:01:17]} 0-1


[Site "https://www.chess.com"]